[Event "UZB-ch Women 2020"]
[Site "Tashkent"]
[Date "2020.03.14"]
[Round "1.5"]
[White "Narzikulova, Gulhae"]
[Black "Khamdamova, Afruza"]
[Result "1/2-1/2"]
[ECO "D05"]
[WhiteElo "1837"]
[BlackElo "1809"]
[Annotator "NA RC"]
[PlyCount "65"]
[EventDate "2020.03.11"]
[EventType "tourn"]
[EventCountry "UZB"]
[SourceTitle "playchess.com"]
[Source "ChessBase"]
[SourceQuality "1"]
[TimeControl "5400+30"]

1. d4 {[%emt 0:00:00]} Nf6 {[%emt 0:00:00]} 2. Nf3 {[%emt 0:00:00]} d5 {[%emt 0:00:00]} 3. e3 {[%emt 0:00:04]} e6 {[%emt 0:00:04]} 4. Bd3 {[%emt 0:00:15]} Bd6 {[%emt 0:00:11]} 5. Nbd2 {[%emt 0:00:28]} c5 {[%emt 0:00:16]} 6. c3 {[%emt 0:01:17]} O-O {[%emt 0:01:16]} 7. O-O {[%emt 0:00:08]} Nc6 {[%emt 0:00:35]} 8. dxc5 {[%emt 0:06:15]} Bxc5 {[%emt 0:00:14]} 9. b4 {[%emt 0:00:03]} Bd6 {[%emt 0:00:50]} 10. Bb2 {[%emt 0:00:00]} e5 {[%emt 0:19:12]} 11. e4 {[%emt 0:00:55]} dxe4 {[%emt 0:18:50]} 12. Nxe4 {[%emt 0:00:08]} Nxe4 {[%emt 0:06:31]} 13. Bxe4 {[%emt 0:00:06]} Be6 {[%emt 0:02:38]} 14. Re1 {[%emt 0:02:38]} f6 {[%emt 0:08:13]} 15. Qd3 {[%emt 0:10:17]} f5 {[%emt 0:19:58]} 16. Bxc6 {[%emt 0:00:30]} bxc6 {[%emt 0:00:09]} 17. Rad1 {[%emt 0:17:08]} Bc7 {[%emt 0:02:25]} 18. Qe2 {[%emt 0:08:37]} Qf6 {[%emt 0:01:31]} 19. Nxe5 {[%emt 0:01:32]} Bxe5 {[%emt 0:03:12]} 20. Qxe5 {[%emt 0:00:06]} Bxa2 {[%emt 0:01:41]} 21. Qxf6 {[%emt 0:11:13]} Rxf6 {[%emt 0:01:58]} 22. c4 {[%emt 0:01:56]} Rf7 {[%emt 0:01:26]} 23. Rd4 {[%emt 0:01:58]} h6 {[%emt 0:03:27]} 24. Ra1 {[%emt 0:11:56]} Bb3 {[%emt 0:01:19]} 25. Ra3 {[%emt 0:01:09]} c5 {[%emt 0:01:15]} 26. bxc5 {[%emt 0:01:06]} Rb8 {[%emt 0:00:19]} 27. Bc1 {[%emt 0:05:25]} Re7 {[%emt 0:00:56]} 28. Be3 {[%emt 0:02:48]} Bxc4 {[%emt 0:01:23]} 29. h4 {[%emt 0:01:38]} Bb5 {[%emt 0:00:52]} 30. Rd6 {[%emt 0:01:34]} Rc8 {[%emt 0:00:27]} 31. Rc3 {[%emt 0:02:20]} Bc6 {[%emt 0:00:13]} 32. Kh2 {[%emt 0:01:31]} Kf7 {[%emt 0:00:59]} 33. Rb3 {[%emt 0:01:05]} 1/2-1/2

[Event "UZB-ch Women 2020"]
[Site "Tashkent"]
[Date "2020.03.14"]
[Round "2.3"]
[White "Khegay, Yuliya"]
[Black "Omonova, Umida"]
[Result "0-1"]
[ECO "B36"]
[WhiteElo "1798"]
[BlackElo "1852"]
[Annotator "NA RC"]
[PlyCount "96"]
[EventDate "2020.03.11"]
[EventType "tourn"]
[EventCountry "UZB"]
[SourceTitle "playchess.com"]
[Source "ChessBase"]
[SourceQuality "1"]
[TimeControl "5400+30"]

1. e4 {[%emt 0:00:00]} c5 {[%emt 0:00:32]} 2. Nf3 {[%emt 0:00:00]} Nc6 {[%emt 0:00:20]} 3. d4 {[%emt 0:03:08]} cxd4 {[%emt 0:00:25]} 4. Nxd4 {[%emt 0:00:05]} g6 {[%emt 0:01:03]} 5. c4 {[%emt 0:00:53]} Nf6 {[%emt 0:00:32]} 6. Nc3 {[%emt 0:00:07]} d6 {[%emt 0:00:29]} 7. f3 {[%emt 0:00:54]} Nxd4 {[%emt 0:01:09]} 8. Qxd4 {[%emt 0:00:07]} Bg7 {[%emt 0:00:18]} 9. Be3 {[%emt 0:00:53]} O-O {[%emt 0:00:25]} 10. Qd2 {[%emt 0:00:06]} a5 {[%emt 0:01:11]} 11. b3 {[%emt 0:03:09]} a4 {[%emt 0:01:12]} 12. b4 {[%emt 0:01:25]} Be6 {[%emt 0:02:05]} 13. Rc1 {[%emt 0:01:50]} Qd7 {[%emt 0:03:17]} 14. Be2 {[%emt 0:17:07]} Rfc8 {[%emt 0:04:16]} 15. Nb5 {[%emt 0:04:03]} a3 {[%emt 0:11:54]} 16. O-O {[%emt 0:03:25]} Ne8 {[%emt 0:01:52]} 17. Nd4 {[%emt 0:05:56]} Nc7 {[%emt 0:06:06]} 18. Rfd1 {[%emt 0:04:08]} Na6 {[%emt 0:02:34]} 19. c5 {[%emt 0:24:48]} dxc5 {[%emt 0:07:15]} 20. Bb5 {[%emt 0:00:50]} Qd6 {[%emt 0:16:09]} 21. Nxe6 {[%emt 0:00:57]} fxe6 {[%emt 0:00:03]} 22. Qxd6 {[%emt 0:07:24]} exd6 {[%emt 0:00:02]} 23. Bd7 {[%emt 0:00:10]} Rd8 {[%emt 0:05:38]} 24. Bxe6+ {[%emt 0:00:11]} Kh8 {[%emt 0:00:02]} 25. Bg5 {[%emt 0:06:34]} Re8 {[%emt 0:03:17]} 26. Bb3 {[%emt 0:06:27]} Nxb4 {[%emt 0:03:38]} 27. Rxd6 {[%emt 0:00:43]} Rac8 {[%emt 0:00:07]} 28. Be3 {[%emt 0:04:49]} Na6 {[%emt 0:01:57]} 29. Kf1 {[%emt 0:02:04]} Be5 {[%emt 0:04:18]} 30. Rb6 {[%emt 0:02:01]} Rc7 {[%emt 0:00:22]} 31. Ke2 {[%emt 0:00:21]} Rd8 {[%emt 0:01:54]} 32. Rc4 {[%emt 0:00:51]} Rcd7 {[%emt 0:02:33]} 33. Rc2 {[%emt 0:00:31]} Kg7 {[%emt 0:01:29]} 34. Bg5 {[%emt 0:00:21]} Rf8 {[%emt 0:00:32]} 35. Be6 {[%emt 0:00:34]} Rc7 {[%emt 0:00:42]} 36. Bc4 {[%emt 0:00:31]} Nb4 {[%emt 0:00:28]} 37. Rd2 {[%emt 0:00:29]} Bxh2 {[%emt 0:00:44]} 38. Rd1 {[%emt 0:00:27]} h5 {[%emt 0:01:40]} 39. Bd8 {[%emt 0:00:29]} Rc8 {[%emt 0:02:33]} 40. Rxb7+ {[%emt 0:00:03]} Kh6 {[%emt 0:00:07]} 41. Be7 {[%emt 0:00:19]} Rfe8 {[%emt 0:00:48]} 42. Bf7 {[%emt 0:01:13]} Rxe7 {[%emt 0:00:58]} 43. Rxe7 {[%emt 0:00:01]} c4 {[%emt 0:00:01]} 44. Rc1 {[%emt 0:00:54]} c3 {[%emt 0:00:13]} 45. Bb3 {[%emt 0:00:40]} Bf4 {[%emt 0:00:20]} 46. Rc2 {[%emt 0:00:29]} Nxc2 {[%emt 0:00:06]} 47. Bxc2 {[%emt 0:00:01]} Rd8 {[%emt 0:00:02]} 48. Bb3 {[%emt 0:00:58]} c2 {[%emt 0:00:08]} 0-1

[Event "UZB-ch Women 2020"]
[Site "Tashkent"]
[Date "2020.03.14"]
[Round "3.3"]
[White "Omonova, Umida"]
[Black "Saparova, Sitora"]
[Result "1-0"]
[ECO "B08"]
[WhiteElo "1852"]
[BlackElo "1972"]
[Annotator "RC"]
[PlyCount "73"]
[EventDate "2020.03.11"]
[EventType "tourn"]
[EventCountry "UZB"]
[SourceTitle "playchess.com"]
[Source "ChessBase"]
[SourceQuality "1"]
[TimeControl "5400+30"]

1. e4 {[%emt 0:00:00]} g6 {[%emt 0:01:33]} 2. d4 {[%emt 0:00:11]} Bg7 {[%emt 0:00:15]} 3. Nf3 {[%emt 0:00:20]} d6 {[%emt 0:01:00]} 4. Be2 {[%emt 0:00:16]} Nf6 {[%emt 0:00:36]} 5. Nc3 {[%emt 0:00:15]} O-O {[%emt 0:00:42]} 6. O-O {[%emt 0:00:40]} Nbd7 {[%emt 0:00:23]} 7. e5 {[%emt 0:01:04]} Ne8 {[%emt 0:02:30]} 8. Bf4 {[%emt 0:01:09]} c6 {[%emt 0:04:59]} 9. Re1 {[%emt 0:02:00]} Qa5 {[%emt 0:02:01]} 10. Bf1 {[%emt 0:06:51]} d5 {[%emt 0:08:04]} 11. Qd2 {[%emt 0:11:44]} Nc7 {[%emt 0:03:57]} 12. Nxd5 {[%emt 0:04:47]} Qxd5 {[%emt 0:08:23]} 13. c4 {[%emt 0:00:30]} Qe6 {[%emt 0:00:45]} 14. Ng5 {[%emt 0:00:16]} Qf5 {[%emt 0:00:37]} 15. Bd3 {[%emt 0:00:50]} Qg4 {[%emt 0:01:18]} 16. Be2 {[%emt 0:02:54]} Qh4 {[%emt 0:02:55]} 17. g3 {[%emt 0:00:58]} Qh6 {[%emt 0:01:45]} 18. h4 {[%emt 0:02:19]} f6 {[%emt 0:04:26]} 19. exf6 {[%emt 0:05:46]} Nxf6 {[%emt 0:10:24]} 20. Bxc7 {[%emt 0:07:05]} Nh5 {[%emt 0:04:50]} 21. c5 {[%emt 0:02:00]} Nf6 {[%emt 0:06:01]} 22. Bc4+ {[%emt 0:10:41]} Nd5 {[%emt 0:00:58]} 23. Rxe7 {[%emt 0:02:26]} Bf6 {[%emt 0:04:34]} 24. Rae1 {[%emt 0:01:26]} Qh5 {[%emt 0:04:59]} 25. Re8 {[%emt 0:03:10]} Bf5 {[%emt 0:02:36]} 26. Rxa8 {[%emt 0:00:49]} Rxa8 {[%emt 0:00:28]} 27. Be5 {[%emt 0:04:18]} Bd8 {[%emt 0:01:48]} 28. Ne4 {[%emt 0:02:40]} Be7 {[%emt 0:03:00]} 29. Nf6+ {[%emt 0:01:17]} Bxf6 {[%emt 0:00:45]} 30. Bxf6 {[%emt 0:00:01]} h6 {[%emt 0:02:33]} 31. Re7 {[%emt 0:01:45]} Rf8 {[%emt 0:01:01]} 32. Bxd5+ {[%emt 0:01:01]} cxd5 {[%emt 0:00:40]} 33. Rg7+ {[%emt 0:01:33]} Kh8 {[%emt 0:00:34]} 34. Be5 {[%emt 0:00:10]} Be4 {[%emt 0:01:27]} 35. Rxg6+ {[%emt 0:00:10]} Kh7 {[%emt 0:00:20]} 36. Rg7+ {[%emt 0:00:07]} Kh8 {[%emt 0:01:02]} 37. Rg5+ {[%emt 0:00:07]} 1-0

[Event "UZB-ch Women 2020"]
[Site "Tashkent"]
[Date "2020.03.14"]
[Round "4.4"]
[White "Narzikulova, Gulhae"]
[Black "Omonova, Umida"]
[Result "0-1"]
[ECO "D05"]
[WhiteElo "1837"]
[BlackElo "1852"]
[Annotator "NA RC"]
[PlyCount "60"]
[EventDate "2020.03.11"]
[EventType "tourn"]
[EventCountry "UZB"]
[SourceTitle "playchess.com"]
[Source "ChessBase"]
[SourceQuality "1"]
[TimeControl "5400+30"]

1. d4 {[%emt 0:00:00]} d5 {[%emt 0:01:53]} 2. Nf3 {[%emt 0:00:00]} Nf6 {[%emt 0:00:16]} 3. e3 {[%emt 0:00:02]} c5 {[%emt 0:00:14]} 4. Bd3 {[%emt 0:01:05]} Nc6 {[%emt 0:02:14]} 5. Nbd2 {[%emt 0:00:54]} e6 {[%emt 0:01:29]} 6. O-O {[%emt 0:02:22]} Bd6 {[%emt 0:00:52]} 7. c3 {[%emt 0:00:46]} O-O {[%emt 0:01:53]} 8. dxc5 {[%emt 0:01:28]} Bxc5 {[%emt 0:00:29]} 9. b4 {[%emt 0:00:05]} Bd6 {[%emt 0:01:32]} 10. Bb2 {[%emt 0:00:06]} e5 {[%emt 0:08:21] D05: Colle System with ...e6.} 11. e4 {[%emt 0:01:09]} Bg4 {[%emt 0:02:06]} 12. h3 {[%emt 0:08:08] 12.Re1 gains popularity.} Be6 {[%emt 0:05:39] [#]} 13. Ng5 $146 {[%emt 0:03:49]} ({Predecessor:} 13. Re1 h6 14. exd5 Nxd5 15. Ne4 Be7 16. b5 Nf4 17. Bf1 Na5 18. Nxe5 Qxd1 19. Raxd1 {½-½ (36) Pasta,P (2112)-Dugo,I ICCF email 2011}) 13... h6 {[%emt 0:01:57]} 14. exd5 {[%emt 0:06:52]} Bxd5 {[%emt 0:02:10]} 15. Nge4 {[%emt 0:00:36]} Nxe4 {[%emt 0:02:18]} 16. Bxe4 {[%emt 0:05:47]} Be6 {[%emt 0:04:43]} 17. Nf3 {[%emt 0:00:16]} Qc7 {[%emt 0:00:47]} 18. Re1 {[%emt 0:04:40]} Rfd8 {[%emt 0:04:45]} 19. Qe2 {[%emt 0:01:07]} Ne7 {[%emt 0:01:37]} 20. Rad1 {[%emt 0:09:31]} f5 {[%emt 0:05:27]} 21. Bb1 {[%emt 0:03:30]} Bc4 {[%emt 0:01:16]} 22. Qc2 $1 {[%emt 0:08:34]} (22. Bd3 $2 Bxd3 23. Rxd3 e4 $17 {[%mdl 64] Double Attack}) 22... e4 {[%emt 0:05:16]} 23. Nd2 {[%emt 0:02:46]} Bf7 {[%emt 0:01:22]} 24. Ba1 {[%emt 0:08:11]} ({Better is} 24. Nf1 $15) 24... Ng6 {[%emt 0:02:32]} 25. Nb3 {[%emt 0:08:10]} Qe7 {[%emt 0:03:05]} 26. f3 $19 {[%emt 0:03:55]} (26. Nd4 Qg5 27. Nxf5 Qxf5 28. Qxe4 Qxe4 29. Bxe4) 26... Qg5 {[%emt 0:07:03]} 27. Rxd6 {[%emt 0:00:41]} Rxd6 {[%emt 0:00:28]} 28. fxe4 {[%emt 0:00:18]} Bxb3 {[%emt 0:02:29]} 29. Qxb3+ {[%emt 0:00:03]} Kh8 {[%emt 0:00:01]} 30. exf5 {[%emt 0:00:46]} Qg3 {[%emt 0:01:07]} 0-1